[Event "Azerbaijan-ch 1st League 2025"]
[Site "Baku"]
[Date "2025.01.10"]
[Round "5.12"]
[White "Halafov, Ilgar"]
[Black "Isbatov, Kanan"]
[Result "0-1"]
[Annotator "TA"]
[ECO "A48"]
[WhiteElo "1990"]
[BlackElo "1882"]
[PlyCount "66"]
[EventDate "2025.01.05"]
[EventType "swiss"]
[EventCountry "AZE"]
[SourceTitle "playchess.com"]
[Source "ChessBase"]
[SourceQuality "1"]
[TimeControl "40/5400+30:1800+30"]

{[%evp 17,66,0,0,0,36,0,0,0,0,-17,0,0,0,4,1,8,141,141,151,148,141,142,214,214,318,113,94,68,70,74,81,-6,-14,0,14,-77,-120,-122,-100,-122,-113,-100,-97,-223,-173,-185,-177,-273,-262,-365,-302]} 1. d4 {[%emt 0:00:03]} Nf6 {[%emt 0:00:04]} 2. Nf3 {[%emt 0:00:17]} g6 {[%emt 0:00:19]} 3. Bf4 {[%emt 0:00:12]} Bg7 {[%emt 0:00:07]} 4. e3 {[%emt 0:00:19]} O-O {[%emt 0:00:06]} 5. h3 {[%emt 0:00:21]} d6 {[%emt 0:01:50]} 6. Be2 {[%emt 0:00:58]} Nbd7 {[%emt 0:00:05]} 7. O-O {[%emt 0:00:39]} b6 {[%emt 0:00:05]} 8. Nbd2 {[%emt 0:00:42]} Bb7 {[%emt 0:00:08]} 9. c3 {[%emt 0:01:11]} Qe8 {[%emt 0:01:22]} 10. a4 {[%emt 0:02:08]} a5 {[%emt 0:00:23]} 11. Qc2 {[%emt 0:00:29]} e5 {[%emt 0:00:19]} 12. dxe5 {[%emt 0:00:48]} dxe5 {[%emt 0:00:02]} 13. Bh2 {[%emt 0:00:48]} Rd8 {[%emt 0:01:51]} 14. Rfd1 {[%emt 0:05:26]} Nd5 {[%emt 0:06:20]} 15. Bc4 {[%emt 0:01:51]} Nc5 {[%emt 0:07:56]} 16. Nb3 {[%emt 0:21:58]} Nxa4 {[%emt 0:02:17]} (16... Qe7 $1 $11 {keeps the balance.}) 17. e4 $16 {[%emt 0:08:04]} Nf6 {[%emt 0:11:30]} 18. Rxd8 {[%emt 0:01:04]} (18. Nxe5 Rxd1+ (18... Nxe4 $2 19. Rxd8 Qxd8 20. Nxf7 $18) 19. Rxd1 Bxe4 $11) 18... Qxd8 {[%emt 0:00:02]} 19. Rxa4 {[%emt 0:00:56]} Bxe4 {[%emt 0:00:02] [#]} (19... Nxe4 $16 20. Bxe5 (20. Nxe5 Qe8 $16) 20... Bxe5) 20. Qe2 $1 $18 {[%emt 0:01:22]} c6 {[%emt 0:00:59]} (20... Bxf3 {was necessary.} 21. Qxf3 e4) 21. Ra1 $2 {[%emt 0:12:29]} (21. Bxe5 b5 $16) (21. Nxe5 $18 {and the rest is easy. Nd4 would now be deadly.} Bd5 22. Bxd5 Nxd5 23. Qf3 (23. Nxc6 Qd7 $18)) 21... b5 $16 {[%emt 0:00:33]} 22. Rd1 {[%emt 0:18:37]} Qe8 {[%emt 0:02:48]} 23. Nxe5 {[%emt 0:08:08]} bxc4 {[%emt 0:00:46]} 24. Qxc4 {[%emt 0:00:38]} (24. Nxa5 $16 Bd5 (24... Bd3 25. Qe1 $16) 25. Qe3 (25. Naxc4 Nd7 $16)) 24... Bd5 $11 {[%emt 0:00:44] This pair of bishops is nice.} 25. Qa4 $1 {[%emt 0:00:11]} Ne4 {[%emt 0:01:36]} 26. Nf3 {[%emt 0:01:44] [#]} (26. Ng4 $11) 26... Bxc3 $1 $17 {[%emt 0:12:32]} 27. bxc3 {[%emt 0:10:15]} Nxc3 {[%emt 0:00:02]} 28. Qa1 {[%emt 0:01:07]} Nxd1 {[%emt 0:02:08]} ({Stronger than} 28... Bxb3 29. Re1 Ne2+ 30. Kh1 $14 (30. Kf1 Qe7 $16)) 29. Qxd1 {[%emt 0:00:04]} a4 $36 {[%emt 0:00:37][%mdl 2048] Keeping White busy.} 30. Na1 {[%emt 0:01:02]} (30. Nbd4 $17) 30... Qe4 {[%emt 0:00:56]} ({Don't play} 30... Bxf3 31. gxf3 a3 32. Kg2) 31. Be5 {[%emt 0:00:12]} a3 {[%emt 0:00:39]} 32. Qc1 {[%emt 0:01:06]} (32. Bc3 $142) 32... a2 $19 {[%emt 0:02:01] and ...Qb1 would now be decisive} 33. Qh6 {[%emt 0:00:16][%csl Ge5][%cal Rh6g7]} f6 {[%emt 0:00:01]} 0-1

[Event "Azerbaijan-ch 1st League 2025"]
[Site "Baku"]
[Date "2025.01.10"]
[Round "5.13"]
[White "Kazimzade, Mahammad"]
[Black "Idrisov, Tabriz"]
[Result "0-1"]
[Annotator "TA"]
[ECO "B72"]
[WhiteElo "1743"]
[BlackElo "2073"]
[PlyCount "66"]
[EventDate "2025.01.05"]
[EventType "swiss"]
[EventCountry "AZE"]
[SourceTitle "playchess.com"]
[Source "ChessBase"]
[SourceQuality "1"]
[TimeControl "40/5400+30:1800+30"]

{[%evp 17,65,0,0,0,0,0,0,0,0,0,0,6,0,-18,-43,-57,0,-42,-18,-39,-40,-49,-52,-37,-36,-66,-19,-62,0,-35,0,-18,28,0,0,-9,0,-71,-65,-68,-72,-76,-87,-519,-522,-585,-574,-577,-562,-29999]} 1. e4 {[%emt 0:00:03]} g6 {[%emt 0:03:34]} 2. d4 {[%emt 0:00:36]} Bg7 {[%emt 0:02:07]} 3. Nc3 {[%emt 0:00:25]} c5 {[%emt 0:01:00]} 4. Be3 {[%emt 0:09:54]} Nc6 {[%emt 0:04:42]} 5. Nf3 {[%emt 0:02:33]} cxd4 {[%emt 0:01:11]} 6. Nxd4 {[%emt 0:00:40]} d6 {[%emt 0:00:23]} 7. Bc4 {[%emt 0:06:54]} Nf6 {[%emt 0:01:11]} 8. O-O {[%emt 0:03:34]} Ng4 {[%emt 0:03:19]} 9. Nxc6 {[%emt 0:08:58]} bxc6 {[%emt 0:00:19]} 10. Bf4 {[%emt 0:00:45]} Qb6 {[%emt 0:05:54]} 11. Rb1 {[%emt 0:07:20]} O-O {[%emt 0:00:24]} 12. h3 {[%emt 0:00:29]} Ne5 {[%emt 0:00:05]} 13. Bb3 {[%emt 0:00:23]} a5 {[%emt 0:00:17]} 14. Be3 {[%emt 0:03:26]} Qa6 {[%emt 0:04:07]} 15. Bd4 {[%emt 0:07:56]} c5 {[%emt 0:02:49]} 16. Be3 {[%emt 0:07:02]} Ra7 {[%emt 0:13:08]} (16... a4 $15 17. Bxa4 Nc4) 17. Qc1 {[%emt 0:08:10]} Bd7 {[%emt 0:09:44]} 18. a3 {[%emt 0:05:32]} Nc6 {[%emt 0:17:23]} 19. Bh6 {[%emt 0:04:08]} Nd4 {[%emt 0:00:05]} 20. Bxg7 {[%emt 0:01:21]} Kxg7 {[%emt 0:00:02]} 21. Ba2 {[%emt 0:01:19]} Be6 {[%emt 0:01:49] Black is much more active.} (21... Ba4 $15 22. b3 Bd7) 22. Bd5 {[%emt 0:01:45]} Bc8 {[%emt 0:03:26]} ({Better is} 22... Bxd5 $15 23. exd5 Qc8) 23. Qd2 {[%emt 0:01:24]} e6 {[%emt 0:04:05]} (23... Bxh3 $5 24. f4 Bd7 $15) 24. Ba2 {[%emt 0:00:25]} f5 {[%emt 0:01:31]} (24... Qc6 {was preferable.}) 25. b4 {[%emt 0:05:39]} (25. a4 $5) 25... axb4 {[%emt 0:02:01]} 26. axb4 {[%emt 0:00:04]} f4 {[%emt 0:00:20]} 27. bxc5 {[%emt 0:01:25]} (27. b5 $11 Qb6 28. Bc4) 27... dxc5 $17 {[%emt 0:00:09]} 28. f3 {[%emt 0:00:53]} Rd7 {[%emt 0:03:06][%cal Od4f3]} 29. Qd3 {[%emt 0:04:08]} Qa5 {[%emt 0:00:30][%cal Oc5c4] and ...c4! would now be decisive} 30. Kf2 $2 {[%emt 0:01:05][%mdl 8192]} (30. Ra1 $17 {is tougher.} c4 31. Bxc4 (31. Qxc4 $2 {is the wrong capture.} Ba6 $19) 31... Nxf3+ 32. Qxf3 Qc5+ 33. Qf2 Qxc4 34. Qe1) 30... Nc6 $19 {[%emt 0:01:43]} 31. Qc4 {[%emt 0:00:22]} Rd4 {[%emt 0:00:16]} 32. Qb5 {[%emt 0:03:01]} Qxc3 {[%emt 0:00:19][%csl Gf4][%cal Rc3e3]} 33. Qxc6 {[%emt 0:00:53]} Qe3# {[%emt 0:00:07]} 0-1

[Event "Azerbaijan-ch 1st League 2025"]
[Site "Baku"]
[Date "2025.01.10"]
[Round "5.14"]
[White "Garakhanov, Shamsi"]
[Black "Huseynov, Ahmed"]
[Result "0-1"]
[Annotator "TA"]
[ECO "B03"]
[WhiteElo "2022"]
[BlackElo "1996"]
[PlyCount "68"]
[EventDate "2025.01.05"]
[EventType "swiss"]
[EventCountry "AZE"]
[SourceTitle "playchess.com"]
[Source "ChessBase"]
[SourceQuality "1"]
[TimeControl "40/5400+30:1800+30"]

{[%evp 20,68,64,-4,-15,-20,-7,-63,-63,-68,0,-279,-218,-216,-231,-287,-272,-327,-334,-342,-342,-357,-351,-347,-345,-345,-351,-347,-293,-334,-347,-454,-446,-692,-669,-687,-641,-746,-731,-1100,-849,-5306,-1804,-1810,-1689,-29987,-29988,-29994,-29995,-29995,-29996]} 1. e4 {[%emt 0:02:22][%cal Be2e4,Be4e5][%mdl 32]} Nf6 {[%emt 0:00:11][%cal Bg8f6,Bf6d5,Bd5b6][%mdl 32]} 2. e5 {[%emt 0:00:04]} Nd5 {[%emt 0:00:05]} 3. d4 {[%emt 0:00:08]} d6 {[%emt 0:00:05]} 4. c4 {[%emt 0:00:43]} Nb6 {[%emt 0:00:05]} 5. f4 {[%emt 0:00:45]} dxe5 {[%emt 0:00:24]} 6. fxe5 {[%emt 0:01:09]} Bf5 {[%emt 0:00:21]} 7. Nc3 {[%emt 0:02:24]} Nc6 {[%emt 0:00:20]} 8. Be3 {[%emt 0:01:28]} e6 {[%emt 0:00:15]} 9. Nf3 {[%emt 0:07:17]} Qd7 {[%emt 0:06:30]} 10. Be2 {[%emt 0:16:59]} O-O-O {[%emt 0:01:34]} 11. h3 {[%emt 0:10:04]} ({Better is} 11. O-O $14) 11... f6 $11 {[%emt 0:04:04]} 12. O-O {[%emt 0:03:45]} fxe5 {[%emt 0:05:19]} 13. d5 {[%emt 0:12:31]} ({White should play} 13. dxe5 $11 Qxd1 14. Nxd1) 13... exd5 $15 {[%emt 0:04:47] [#] Strongly threatening ...d4. Black is slightly better.} 14. Bxb6 {[%emt 0:37:51][%cal Rc4d5]} axb6 {[%emt 0:04:36]} (14... d4 $1 $15 15. Nxe5 Nxe5 16. Bxd4 Nc6 (16... Qxd4+ 17. Qxd4 Rxd4 18. Rxf5 $11)) 15. Nxd5 $2 {[%emt 0:00:00][%mdl 8192] Black keeps a firm grip on the game.} (15. cxd5 $11 {and White is okay.} Bc5+ 16. Kh1) 15... Bc5+ {[%emt 0:04:41]} 16. Kh1 {[%emt 0:00:00]} e4 {[%emt 0:05:02]} 17. Nh2 {[%emt 0:00:00][%cal Of1f5] [#] Rxf5! would now be deadly.} Kb8 {[%emt 0:02:31][%cal Oh7h5]} 18. Bg4 {[%emt 0:00:00]} g6 {[%emt 0:02:03]} 19. Bxf5 {[%emt 0:00:00]} gxf5 {[%emt 0:00:06]} 20. Qh5 {[%emt 0:00:00]} Rdf8 {[%emt 0:04:48]} 21. Rad1 {[%emt 0:00:00][%cal Od5b6]} Qe6 {[%emt 0:00:35]} 22. b3 {[%emt 0:00:00]} Bd6 {[%emt 0:03:25]} 23. Nf4 {[%emt 0:00:00]} Qe7 {[%emt 0:00:32]} 24. Rd5 {[%emt 0:00:00]} Ne5 {[%emt 0:08:34]} 25. Rdd1 {[%emt 0:00:00]} Ng6 {[%emt 0:01:14]} 26. g3 {[%emt 0:00:00]} (26. Nxg6 $142 hxg6 27. Qxg6) 26... Nxf4 $19 {[%emt 0:01:32]} 27. gxf4 {[%emt 0:00:00]} Rhg8 {[%emt 0:00:38]} 28. Rde1 {[%emt 0:00:00]} Qf6 {[%emt 0:00:33]} 29. Re2 {[%emt 0:00:00]} Rg6 {[%emt 0:00:29]} 30. Rg2 {[%emt 0:00:00]} Rxg2 {[%emt 0:01:25]} 31. Kxg2 {[%emt 0:00:00] White is weak on the dark squares} Rg8+ {[%emt 0:00:08]} 32. Kh1 {[%emt 0:00:00]} Qb2 {[%emt 0:00:43][%csl Gg8][%cal Rb2g2] Black mates.} 33. Rg1 {[%emt 0:00:00]} Rxg1+ {[%emt 0:00:10]} 34. Kxg1 {[%emt 0:00:00]} Bc5+ {[%emt 0:00:12] Weighted Error Value: White=1.03/Black=0.09 (flawless) .  Loses game:     	White=1     	---        Mistake:       	White=2     	Black=1      Inaccurate:     	White=1     	---        OK:         	White=6     	Black=7      Best:        	---       	Black=2} 0-1

[Event "Azerbaijan-ch 1st League 2025"]
[Site "Baku"]
[Date "2025.01.10"]
[Round "5.15"]
[White "Allajov, Ramil"]
[Black "Safarli, Ramzi"]
[Result "1-0"]
[Annotator "TA"]
[ECO "B28"]
[WhiteElo "2079"]
[BlackElo "1792"]
[PlyCount "105"]
[EventDate "2025.01.05"]
[EventType "swiss"]
[EventCountry "AZE"]
[SourceTitle "playchess.com"]
[Source "ChessBase"]
[SourceQuality "1"]
[TimeControl "40/5400+30:1800+30"]

{[%evp 9,105,12,24,14,66,55,47,53,25,13,16,-17,47,15,18,10,13,0,0,-14,-16,-12,0,-10,-10,-12,-4,-23,-21,-27,-27,-31,8,8,12,0,5,-7,-4,-31,-9,-13,-23,-11,0,0,0,-26,0,-8,15,-14,-20,-44,-53,-59,59,58,64,65,128,138,166,166,164,122,123,141,224,67,174,172,406,390,416,411,568,543,528,418,693,705,916,812,1443,1295,29987,29988,29989,29989,29990,29990,29990,29991,29994,29994,29994,29995]} 1. e4 {[%emt 0:01:42]} c5 {[%emt 0:01:16]} 2. Nf3 {[%emt 0:00:05]} a6 {[%emt 0:00:03]} 3. g3 {[%emt 0:00:33]} g6 {[%emt 0:01:49]} 4. Bg2 {[%emt 0:00:08]} Bg7 {[%emt 0:00:04]} 5. O-O {[%emt 0:00:03]} Nc6 {[%emt 0:01:07]} 6. c3 {[%emt 0:01:10]} Nf6 {[%emt 0:04:05]} (6... e5 $11) 7. e5 $1 $14 {[%emt 0:07:14]} Nd5 {[%emt 0:00:09][%cal Oe8g8]} 8. d4 {[%emt 0:00:24]} cxd4 $1 {[%emt 0:00:20][%cal Oe8g8]} 9. cxd4 {[%emt 0:01:31]} d6 {[%emt 0:01:13]} 10. Qb3 {[%emt 0:03:17]} e6 {[%emt 0:13:59]} (10... dxe5 $11 11. Ng5 e6 (11... Nxd4 12. Qxd5 Qxd5 13. Bxd5 $11) 12. dxe5 O-O) 11. exd6 {[%emt 0:01:51]} Qxd6 {[%emt 0:00:29][%cal Oe8g8]} 12. Nc3 {[%emt 0:00:06]} O-O {[%emt 0:00:54]} 13. Nxd5 {[%emt 0:07:38]} Qxd5 {[%emt 0:01:28]} 14. Qxd5 {[%emt 0:01:51]} exd5 {[%emt 0:00:00]} 15. Be3 {[%emt 0:00:14]} Bg4 {[%emt 0:00:59]} 16. Rfd1 {[%emt 0:05:13]} Rfe8 {[%emt 0:09:53]} 17. h3 {[%emt 0:00:21]} Bf5 {[%emt 0:03:40]} 18. Ne1 {[%emt 0:03:33]} Be4 {[%emt 0:01:09]} 19. Bf1 {[%emt 0:00:04]} Rac8 {[%emt 0:07:44]} 20. Rac1 {[%emt 0:03:27]} Na7 {[%emt 0:17:27][%cal Bc6a7,Ba7c8,Bc8e7,Be7f5][%mdl 32]} 21. Rxc8 {[%emt 0:03:35]} Nxc8 {[%emt 0:01:49]} 22. Bf4 {[%emt 0:03:13]} h6 {[%emt 0:02:25]} 23. Bc7 {[%emt 0:08:44]} g5 {[%emt 0:02:05]} 24. Ng2 {[%emt 0:09:15]} Ne7 {[%emt 0:10:44]} (24... Na7 $5) 25. Ba5 {[%emt 0:01:59]} Nf5 {[%emt 0:01:22]} 26. Bc3 {[%emt 0:00:43]} Bf3 {[%emt 0:00:45]} 27. Rd3 {[%emt 0:01:23]} Be4 {[%emt 0:00:30]} 28. Rd2 {[%emt 0:00:44]} Bf3 {[%emt 0:00:32]} 29. g4 {[%emt 0:01:00]} Nd6 {[%emt 0:00:12]} 30. Rd3 {[%emt 0:01:53]} Be4 {[%emt 0:00:47]} 31. Re3 {[%emt 0:01:10]} f5 {[%emt 0:00:59]} 32. f3 {[%emt 0:03:22][%cal Bf2f3,Bf3e4,Be4e5][%mdl 32]} f4 {[%emt 0:00:05]} (32... Bb1 $1 $15) 33. fxe4 {[%emt 0:00:42]} fxe3 {[%emt 0:00:15]} 34. e5 {[%emt 0:00:05]} Nc4 {[%emt 0:09:23]} (34... Ne4 $14) 35. Bxc4 $16 {[%emt 0:01:31]} dxc4 {[%emt 0:00:01]} 36. Nxe3 {[%emt 0:00:06][%mdl 4096] Endgame KRB-KBN} b5 {[%emt 0:00:00]} 37. Kf2 {[%emt 0:00:19][%mdl 1024] White has strong compensation.} Bf8 {[%emt 0:03:04]} 38. a3 {[%emt 0:00:45]} Rd8 {[%emt 0:00:49] [#]} (38... Ra8 $16) 39. Nc2 $2 {[%emt 0:02:02]} (39. Nf5 $1 $18) 39... Kf7 {[%emt 0:00:23]} (39... Rd7 $1 $14) 40. Ke3 {[%emt 0:00:00]} h5 $2 {[%emt 0:00:00]} (40... Ra8 {was called for.} 41. d5 Bc5+ 42. Bd4 Rc8 43. e6+ Ke8 (43... Ke7 $2 44. Bxc5+ Rxc5 45. Kd4 $18)) 41. Ke4 $18 {[%emt 0:00:22]} hxg4 {[%emt 0:02:30]} 42. hxg4 {[%emt 0:00:01]} Kg6 {[%emt 0:00:12]} 43. d5 {[%emt 0:02:21]} Re8 {[%emt 0:01:00]} 44. e6 {[%emt 0:00:09]} Rd8 {[%emt 0:00:42]} (44... Be7 $142 45. Nb4 Rf8) 45. Nd4 {[%emt 0:00:22]} Bd6 {[%emt 0:00:33]} 46. Nf5 {[%emt 0:00:13] Nxd6 is the strong threat.} Bf4 {[%emt 0:00:18]} 47. Be5 {[%emt 0:01:01]} Bxe5 {[%emt 0:00:33]} 48. Kxe5 {[%emt 0:00:04] KR-KN} Rh8 {[%emt 0:01:24]} 49. d6 {[%emt 0:00:03]} Rh2 {[%emt 0:00:27]} 50. d7 {[%emt 0:00:05]} Re2+ {[%emt 0:00:23]} 51. Kd5 {[%emt 0:00:08]} Rxb2 {[%emt 0:00:59]} 52. d8=Q {[%emt 0:58:45]} Rd2+ {[%emt 0:00:13]} 53. Nd4 {[%emt 0:00:00]} 1-0

[Event "Azerbaijan-ch 1st League 2025"]
[Site "Baku"]
[Date "2025.01.10"]
[Round "5.16"]
[White "Baghirov, Mahammad"]
[Black "Baghirov, Orkhan"]
[Result "1-0"]
[Annotator "TA"]
[ECO "C00"]
[WhiteElo "1932"]
[BlackElo "1989"]
[PlyCount "141"]
[EventDate "2025.01.05"]
[EventType "swiss"]
[EventCountry "AZE"]
[SourceTitle "playchess.com"]
[Source "ChessBase"]
[SourceQuality "1"]
[TimeControl "40/5400+30:1800+30"]

{[%evp 9,141,11,0,12,26,2,8,8,0,-5,-8,0,0,-27,-29,-26,-16,-39,-36,-50,-22,-28,-22,-48,-29,-44,-37,-31,-22,-22,-21,-35,-16,-28,-14,-18,0,0,0,-20,0,-6,-4,-6,0,-20,20,29,87,64,358,388,442,470,454,422,449,447,417,415,381,310,312,260,306,89,73,72,85,89,99,23,63,52,96,50,121,0,225,0,0,0,0,0,0,0,0,0,62,43,59,50,124,153,252,255,425,254,257,0,0,0,0,0,0,0,0,0,737,360,6307,6107,6210,6203,5899,5289,29976,29977,29978,29979,29981,29982,29982,29983,29983,29984,29986,29987,29989,29986,29988,29989,29989,29989]} 1. e4 {[%emt 0:05:32]} e6 {[%emt 0:00:45]} 2. g3 {[%emt 0:00:11]} d5 {[%emt 0:00:03]} 3. Nc3 {[%emt 0:00:10]} Nf6 {[%emt 0:01:58]} 4. Bg2 {[%emt 0:00:07]} dxe4 {[%emt 0:01:46]} 5. Nxe4 {[%emt 0:00:12]} Nxe4 {[%emt 0:00:02]} 6. Bxe4 {[%emt 0:00:10]} Nd7 {[%emt 0:00:00]} 7. Ne2 {[%emt 0:02:13]} Nf6 {[%emt 0:00:53]} 8. Bg2 {[%emt 0:00:10]} e5 {[%emt 0:00:18]} 9. O-O {[%emt 0:00:21]} Bc5 {[%emt 0:00:02]} 10. d3 {[%emt 0:02:27]} O-O {[%emt 0:01:56]} 11. Be3 {[%emt 0:01:03]} Bxe3 {[%emt 0:04:18]} 12. fxe3 {[%emt 0:00:06]} Ng4 {[%emt 0:02:20]} 13. Rf3 {[%emt 0:03:35]} Be6 {[%emt 0:01:38]} 14. Nc3 {[%emt 0:03:05]} Qe7 {[%emt 0:03:23]} 15. h3 {[%emt 0:00:56]} Nf6 {[%emt 0:08:04]} 16. e4 {[%emt 0:00:18]} Rad8 {[%emt 0:02:26]} 17. Qd2 {[%emt 0:00:47]} Qb4 {[%emt 0:00:49]} 18. Qc1 {[%emt 0:03:46]} Rd6 {[%emt 0:03:25]} 19. a3 {[%emt 0:00:17]} Qb6+ {[%emt 0:00:04]} 20. Kh1 {[%emt 0:01:52]} c6 {[%emt 0:01:39]} 21. Rb1 {[%emt 0:00:32]} Bc8 {[%emt 0:03:05]} 22. Qe3 {[%emt 0:02:37]} Qa5 {[%emt 0:02:20]} 23. Rbf1 {[%emt 0:00:42]} Ne8 {[%emt 0:08:15]} 24. Qf2 {[%emt 0:09:27][%cal Rf3f7]} Qc7 {[%emt 0:08:27]} 25. Kg1 {[%emt 0:05:02]} b6 {[%emt 0:01:58]} 26. Nd1 {[%emt 0:02:43]} Rh6 {[%emt 0:00:57]} 27. g4 $1 {[%emt 0:00:29]} Qe7 {[%emt 0:05:18]} 28. Ne3 {[%emt 0:03:39]} g6 {[%emt 0:03:44]} (28... Rd6 $11) 29. Qd2 {[%emt 0:01:26][%cal Oe3f5]} Qh4 $2 {[%emt 0:09:46][%mdl 8192]} (29... Rh4 $14) 30. Nc4 $18 {[%emt 0:01:00]} (30. Qc3 Qg5 31. Nc4 (31. Qxc6 Be6 $16) 31... Be6 32. Nxe5 c5 $18) 30... Be6 {[%emt 0:03:49]} 31. Nxe5 {[%emt 0:01:31]} c5 {[%emt 0:00:15]} 32. R3f2 {[%emt 0:02:22]} Kg7 {[%emt 0:02:31]} 33. Nf3 {[%emt 0:00:35]} Qe7 {[%emt 0:20:46]} 34. Ng5 {[%emt 0:00:23]} f6 {[%emt 0:00:00]} 35. Nf3 {[%emt 0:01:02]} Nc7 {[%emt 0:00:00][%cal Be8c7,Bc7e6,Be6f4][%mdl 32]} 36. Qf4 {[%emt 0:00:19]} Bc8 {[%emt 0:00:00]} 37. Nd2 $2 {[%emt 0:06:02]} (37. Ng5 $18 {and White stays clearly on top.}) 37... Ne6 {[%emt 0:00:00]} 38. Qg3 {[%emt 0:02:19]} g5 {[%emt 0:00:00]} 39. Nc4 {[%emt 0:00:12]} Nf4 {[%emt 0:00:00] [#]} 40. h4 {[%emt 0:00:00]} Qd7 {[%emt 0:00:00]} 41. Ne3 {[%emt 0:14:47]} Qd4 {[%emt 0:04:34]} 42. h5 {[%emt 0:02:37]} ({White should try} 42. c3 $1 $16 {[%cal Rc3d4]} Qe5 43. Rxf4 gxf4 44. Rxf4) 42... Qe5 {[%emt 0:02:59]} ({Black should try} 42... Qxb2 $14 43. Nd5 Nxd5 44. exd5 Qd4) 43. Qh2 {[%emt 0:02:35]} (43. Nd5 $2 Ne2+ (43... Qxb2 $2 44. Nxf4 gxf4 45. Qxf4 $18) 44. Rxe2 Qxg3 $19) (43. Rxf4 $1 $16 {Strongly threatening R4f3.} gxf4 44. Qxf4) 43... f5 $2 {[%emt 0:03:06]} (43... Qxb2 $11 {and Black is okay.} 44. Rxf4 gxf4 45. Qxf4 Qe5) 44. Nd5 $2 {[%emt 0:06:23]} (44. gxf5 $2 Rxh5 $19) (44. Nxf5+ Bxf5 45. Rxf4 (45. gxf5 $2 Rxh5 $19) (45. exf5 Rxf5 46. b3 Rf8 $11) 45... gxf4 46. exf5 Qd4+ (46... Qxb2 47. g5 $18) 47. Kh1 (47. Rf2 Re8 $16) 47... Rhf6) (44. Rxf4 $18 gxf4 45. gxf5) 44... fxg4 $11 {[%emt 0:03:57][%cal Og4g3]} (44... Qxb2 $2 45. Nxf4 (45. exf5 Nxd5 46. Bxd5 Qd4 $18) 45... gxf4 46. Qxf4 $18) 45. Nxf4 {[%emt 0:00:07]} gxf4 {[%emt 0:01:55]} 46. Rxf4 {[%emt 0:00:10]} Rxh5 {[%emt 0:03:47]} (46... Qxh5 $2 47. Qxh5 Rxh5 48. Rxf8 $18) 47. Qg3 $1 {[%emt 0:00:12]} (47. Qxh5 Qxh5 48. Rxf8 Be6 $17) 47... Rg5 {[%emt 0:05:43]} 48. c3 $1 {[%emt 0:02:50]} Rxf4 {[%emt 0:00:17]} (48... Ba6 $1 $11 49. Qxg4 Rxf4 (49... Bxd3 $2 50. Qd7+ Kg6 51. Rxf8 $18) 50. Qxf4 Qxf4 (50... Bxd3 $2 51. Qf8+ Kg6 52. Qf7+ Kh6 53. Rf6+ Rg6 54. Qf8+ Kg5 55. Rf5+ $18) 51. Rxf4 Bxd3) 49. Rxf4 $14 {[%emt 0:00:17]} h5 {[%emt 0:01:10][%cal Oh5h4]} 50. Qe3 $1 {[%emt 0:00:05]} h4 {[%emt 0:01:45]} (50... Qe7 $1 $14) 51. d4 $16 {[%emt 0:00:05]} Qe7 {[%emt 0:00:03]} (51... Qe8 $16) 52. e5 $18 {[%emt 0:00:19]} h3 $2 {[%emt 0:03:28]} (52... Bf5 {might work better.} 53. Qf2 g3) 53. Rf6 {[%emt 0:00:12]} (53. Be4 $142) 53... Rg6 {[%emt 0:02:04]} 54. Rxg6+ $2 {[%emt 0:00:18]} ({Only move:} 54. Bd5 $1 $18) 54... Kxg6 {[%emt 0:00:01][%cal Bg7g6,Bg6f5,Bf5e5][%mdl 4128] Endgame KQB-KQB} 55. Be4+ {[%emt 0:00:10]} Bf5 {[%emt 0:02:36]} 56. Kh2 {[%emt 0:06:58]} Qh4 {[%emt 0:01:36][%cal Og4g3] aiming for ...g3+!.} 57. Bxf5+ {[%emt 0:00:30]} Kxf5 $11 {[%emt 0:00:01] KQ-KQ} 58. d5 {[%emt 0:02:30]} g3+ $2 {[%emt 0:01:56][%mdl 8192]} 59. Qxg3 $18 {[%emt 0:00:18]} Qxg3+ $2 {[%emt 0:00:00]} (59... Qc4 60. d6 (60. Qxh3+ Kxe5 61. Qe6+ Kf4 $16) (60. Kxh3 Qxd5 61. Qg4+ Kxe5 $11) 60... Qd5) 60. Kxg3 {[%emt 0:00:21]} Kxe5 {[%emt 0:00:06] [#] KP-KP} 61. c4 $1 {[%emt 0:00:04]} b5 {[%emt 0:01:50][%cal Bb6b5,Bb5b4][%mdl 32] [#]} 62. b3 $1 {[%emt 0:00:06]} a5 {[%emt 0:00:40]} 63. a4 {[%emt 0:00:10]} b4 {[%emt 0:00:46]} 64. Kxh3 {[%emt 0:00:17]} Kd4 {[%emt 0:00:06]} 65. d6 {[%emt 0:00:05]} Kc3 {[%emt 0:00:01]} 66. d7 {[%emt 0:00:10]} Kxb3 {[%emt 0:00:01]} 67. d8=Q {[%emt 0:00:14]} (67. d8=B $2 {loses.} Kxc4 (67... Kxa4 $2 68. Bg5 $19) 68. Kg4 b3 (68... Kb3 $2 69. Kf5 $19) 69. Bxa5 b2 $19) 67... Kxa4 {[%emt 0:00:14]} 68. Qb6 {[%emt 0:00:14]} Kb3 {[%emt 0:00:41]} 69. Qxa5 {[%emt 0:00:07]} Kxc4 {[%emt 0:00:02]} 70. Kg3 {[%emt 0:00:43]} b3 {[%emt 0:00:15]} 71. Qa3 {[%emt 0:00:05]} 1-0